bitfinex-derivatives/quotes_BNBF0:USTF0_20250609
["timestamp","ask_amount","ask_price","bid_price","bid_amount"]
[1749507069202,1.03736114,666.4,665.13,0.30069309]
[1749507069401,2.12460673,666.41,665.13,0.30069309]
[1749507070497,1.03792245,666.4,665.13,0.30069309]
[1749507070699,2.12516804,666.41,665.13,0.30069309]
[1749507070901,1.03792292,666.4,665.13,0.30069309]
[1749507071098,1.08724559,666.41,665.13,0.30069309]
[1749507071396,3.40416987,666.42,665.13,0.30069309]
[1749507071597,2.12516987,666.41,665.13,0.30069309]
[1749507071897,1.03792428,666.4,665.13,0.30069309]
[1749507072202,2.12514865,666.41,665.13,0.30069309]
[1749507072400,1.03790306,666.4,665.13,0.30069309]
[1749507072605,2.12514239,666.41,665.13,0.30069309]
[1749507072902,1.08724559,666.41,665.13,0.30069309]
[1749507073102,1.03815279,666.41,665.13,0.30069309]
[1749507073303,2.12539838,666.41,665.13,0.30069309]
[1749507074100,1.08724559,666.41,665.13,0.30069309]
[1749507074400,1.03830137,666.41,665.13,0.30069309]
[1749507074603,1.08724559,666.41,665.13,0.30069309]
[1749507074803,3.40454696,666.42,665.13,0.30069309]
[1749507074999,2.12554696,666.41,665.13,0.30069309]
[1749507075704,1.03937716,666.4,665.13,0.30069309]
[1749507075905,2.12662275,666.41,665.13,0.30069309]
[1749507076103,1.03937827,666.4,665.13,0.30069309]
[1749507076305,1.08724559,666.41,665.13,0.30069309]
[1749507076506,3.40573823,666.42,665.13,0.30069309]
[1749507076705,2.12673823,666.41,665.13,0.30069309]
[1749507077500,1.03949135,666.4,665.13,0.30069309]
[1749507077702,2.12702213,666.41,665.13,0.30069309]
[1749507078003,1.08724559,666.41,665.13,0.30069309]
[1749507078506,1.54882199,666.41,665.13,0.30069309]
[1749507078905,2.63606758,666.41,665.13,0.30069309]
[1749507079105,1.03978044,666.4,665.13,0.30069309]
[1749507079308,1.08724559,666.41,665.13,0.30069309]
[1749507079607,0.50909124,666.41,665.13,0.30069309]
[1749507079804,1.279,666.42,665.13,0.30069309]
[1749507080608,1.91,666.41,665.13,0.30069309]
[1749507080809,1.08724559,666.4,665.13,0.30069309]
[1749507081109,2.63609015,666.4,665.13,0.30069309]
[1749507081306,1.03975332,666.39,665.13,0.30069309]
[1749507081610,1.03975202,666.39,665.13,0.30069309]
[1749507081811,1.08724559,666.4,665.13,0.30069309]
[1749507082007,2.63632784,666.4,665.13,0.30069309]
[1749507082207,0.50933023,666.39,665.13,0.30069309]
[1749507082712,0.50933016,666.39,665.14,3.68287609]
[1749507082907,2.12699748,666.4,665.16,0.30067953]
[1749507083212,1.08724559,666.39,665.16,0.30067953]
[1749507083407,1.08724559,666.38,665.16,0.30067953]
[1749507083607,1.08724559,666.37,665.16,0.30067953]
[1749507083808,1.08724559,666.36,665.16,0.30067953]
[1749507084009,1.08724559,666.39,665.16,0.30067953]
[1749507084211,1.08724559,666.38,665.16,0.30067953]
[1749507084409,1.08724559,666.37,665.16,0.30067953]
[1749507084612,1.08724559,666.36,665.16,0.30067953]
[1749507084812,1.08724559,666.35,665.16,0.30067953]
[1749507085009,2.12632871,666.38,665.16,0.30067953]
[1749507085317,2.12632785,666.37,665.16,0.30067953]
[1749507085517,2.12632785,666.36,665.16,0.30067953]
[1749507085711,2.12699311,666.35,665.16,0.30067953]
[1749507085911,2.1269944,666.34,665.16,0.30067953]
[1749507086112,1.08724559,666.33,665.16,0.30067953]
[1749507086316,1.08724559,666.32,665.16,0.30067953]
[1749507086611,1.08724559,666.31,665.16,0.30067953]
[1749507086813,2.63629198,666.38,665.16,0.30067953]
[1749507087013,2.1264415,666.37,665.16,0.30067953]
[1749507087314,2.12644055,666.36,665.16,0.30067953]
[1749507087513,2.12644055,666.35,665.16,0.30067953]
[1749507087713,2.12644055,666.34,665.16,0.30067953]
[1749507087916,1.08724559,666.33,665.16,0.30067953]
[1749507088119,1.08724559,666.32,665.16,0.30067953]
[1749507088316,1.08724559,666.31,665.16,0.30067953]
[1749507088519,1.08724559,666.38,665.16,0.30067953]
[1749507088713,1.08724559,666.37,665.16,0.30067953]
[1749507088915,1.08724559,666.36,665.16,0.30067953]
[1749507089220,1.08724559,666.35,665.16,0.30067953]
[1749507089418,1.08724559,666.34,665.16,0.30067953]
[1749507089620,1.08724559,666.33,665.16,0.30067953]
[1749507089816,1.08724559,666.32,665.16,0.30067953]
[1749507090017,1.08724559,666.31,665.16,0.30067953]
[1749507090217,1.08724559,666.3,665.16,0.30067953]
[1749507090418,1.08724559,666.29,665.16,0.30067953]
[1749507090721,1.08724559,666.28,665.16,0.30067953]
[1749507090923,1.54883287,666.34,665.16,0.30067953]
[1749507090924,1.08724559,666.27,665.16,0.30067953]
[1749507091221,1.08724559,666.26,665.16,0.30067953]
[1749507091422,1.08724559,666.3,665.17,3.68287609]
[1749507091622,1.08724559,666.29,665.19,0.30066597]
[1749507091918,1.08724559,666.28,665.19,0.30066597]
[1749507092122,2.6346386,666.32,665.19,0.30066597]
[1749507092323,2.6346386,666.31,665.19,0.30066597]
[1749507092524,2.6346386,666.3,665.19,0.30066597]
[1749507092721,2.6346386,666.29,665.19,0.30066597]
[1749507092921,2.6346386,666.28,665.19,0.30066597]
[1749507093224,1.08724559,666.27,665.19,0.30066597]
[1749507093422,2.63416659,666.33,665.19,0.30066597]
[1749507093626,2.63416659,666.32,665.19,0.30066597]
[1749507093822,2.63416659,666.31,665.19,0.30066597]
[1749507094125,2.63416659,666.3,665.19,0.30066597]
[1749507094422,2.63416659,666.29,665.19,0.30066597]
[1749507094619,2.12438145,666.28,665.19,0.30066597]
[1749507094824,2.12329952,666.27,665.19,0.30066597]
[1749507095022,2.12329952,666.26,665.19,0.30066597]
[1749507095318,1.08724559,666.25,665.19,0.30066597]
[1749507095523,1.59701858,666.33,665.19,0.30066597]
[1749507095721,2.63287996,666.4,665.19,0.30066597]
[1749507095924,1.59695447,666.39,665.19,0.30066597]
[1749507096120,1.08724559,666.38,665.19,0.30066597]
[1749507096325,1.08724559,666.37,665.19,0.30066597]
[1749507096524,1.08724559,666.36,665.19,0.30066597]
[1749507096725,1.08724559,666.35,665.19,0.30066597]
[1749507096927,1.08724559,666.34,665.19,0.30066597]
[1749507097126,1.59669488,666.39,665.19,0.30066597]
[1749507097328,1.08724559,666.38,665.19,0.30066597]
[1749507097527,1.08724559,666.37,665.19,0.30066597]
[1749507097725,1.08724559,666.36,665.19,0.30066597]
[1749507097928,1.08724559,666.35,665.19,0.30066597]
[1749507098230,1.08724559,666.34,665.19,0.30066597]
[1749507098425,2.12393704,666.36,665.19,0.30066597]
[1749507098629,1.08724559,666.35,665.19,0.30066597]
[1749507098925,2.63314998,666.4,665.19,0.30066597]
[1749507099230,1.59598599,666.39,665.19,0.30066597]
[1749507099430,1.08724559,666.38,665.19,0.30066597]
[1749507099729,1.08724559,666.39,665.19,0.30066597]
[1749507099925,1.08724559,666.38,665.19,0.30066597]
[1749507100130,1.08724559,666.37,665.19,0.30066597]
[1749507100327,2.12436954,666.38,665.19,0.30066597]
[1749507100631,1.91,666.41,665.19,0.30066597]
[1749507100632,1.08724559,666.37,665.19,0.30066597]
[1749507100828,1.08724559,666.4,665.22,3.68287609]
[1749507101031,1.08724559,666.4,665.24,0.30064337]
[1749507108637,1.08724559,666.41,665.24,0.30064337]
[1749507108837,1.279,666.42,665.24,0.30064337]
[1749507111236,2.36624559,666.42,665.24,0.30064337]
[1749507111436,2.82624559,666.41,665.24,0.30064337]
[1749507115139,2.82624559,666.41,665.24,3.98351946]
[1749507116142,2.82624559,666.41,665.25,3.68287609]
[1749507116341,2.82624559,666.41,665.26,0.30063433]
[1749507120752,1.09242732,666.4,665.26,0.30063433]
[1749507120945,2.83142732,666.41,665.26,0.30063433]
[1749507121445,2.1329261,666.4,665.26,0.30063433]
[1749507121748,1.09242732,666.4,665.26,0.30063433]
[1749507122146,1.09242732,666.39,665.26,0.30063433]
[1749507122345,2.13259334,666.4,665.26,0.30063433]
[1749507122549,1.09242732,666.39,665.26,0.30063433]
[1749507122746,2.13259119,666.4,665.26,0.30063433]
[1749507122946,1.09242732,666.39,665.26,0.30063433]
[1749507123150,1.09242732,666.38,665.26,0.30063433]
[1749507123347,1.09242732,666.39,665.26,0.30063433]
[1749507123553,1.764,666.37,665.26,0.30063433]
[1749507123753,1.09242732,666.36,665.26,0.30063433]
[1749507126253,1.09242732,666.35,665.26,0.30063433]
[1749507126455,1.09242732,666.34,665.26,0.30063433]
[1749507126654,1.09242732,666.33,665.26,0.30063433]
[1749507126855,1.764,666.37,665.26,0.30063433]
[1749507126856,1.09242732,666.32,665.26,0.30063433]
[1749507127055,1.09242732,666.31,665.26,0.30063433]
[1749507127257,1.09242732,666.3,665.26,0.30063433]
[1749507127556,1.09242732,666.29,665.26,0.30063433]
[1749507127754,1.09242732,666.28,665.26,0.30063433]
[1749507127953,1.917,666.28,665.26,0.30063433]
[1749507128155,1.09242732,666.27,665.26,0.30063433]
[1749507132060,1.09242732,666.26,665.26,0.30063433]
[1749507132257,1.09242732,666.25,665.26,0.30063433]
[1749507132560,1.09242732,666.24,665.26,0.30063433]
[1749507132763,1.09242732,666.23,665.26,0.30063433]
[1749507133063,1.09242732,666.22,665.26,0.30063433]
[1749507133263,1.09242732,666.21,665.26,0.30063433]
[1749507133563,1.09242732,666.2,665.26,0.30063433]
[1749507133763,2.64253695,666.27,665.26,0.30063433]
[1749507133963,2.64051524,666.26,665.26,0.30063433]
[1749507134164,2.64051566,666.25,665.26,0.30063433]
[1749507134359,1.6018184,666.24,665.26,0.30063433]
[1749507134664,1.09242732,666.23,665.26,0.30063433]
[1749507134964,1.09242732,666.22,665.26,0.30063433]
[1749507135164,1.09242732,666.21,665.26,0.30063433]
[1749507135364,1.09242732,666.2,665.26,0.30063433]
[1749507135561,1.09242732,666.19,665.26,0.30063433]
[1749507135866,1.09242732,666.18,665.26,0.30063433]
[1749507136162,2.63998034,666.25,665.26,0.30063433]
[1749507136365,1.09242732,666.24,665.26,0.30063433]
[1749507136567,1.09242732,666.23,665.26,0.30063433]
[1749507136769,1.09242732,666.22,665.26,0.30063433]
[1749507137065,1.09242732,666.21,665.26,0.30063433]
[1749507137270,1.09242732,666.2,665.26,0.30063433]
[1749507137568,1.09242732,666.19,665.26,0.30063433]
[1749507137769,1.09242732,666.18,665.26,0.30063433]
[1749507137968,1.09242732,666.17,665.26,0.30063433]
[1749507138267,2.63835954,666.2,665.26,0.30063433]
[1749507138469,1.917,666.28,665.26,0.30063433]
[1749507138470,2.63835758,666.19,665.26,0.30063433]
[1749507138668,2.63835758,666.18,665.26,0.30063433]
[1749507138866,2.63835758,666.17,665.26,0.30063433]
[1749507139170,2.63826711,666.16,665.26,0.30063433]
[1749507139370,1.60023016,666.15,665.26,0.30063433]
[1749507139566,2.63509202,666.22,665.26,0.30063433]
[1749507139766,2.63509202,666.21,665.26,0.30063433]
[1749507139969,1.5426647,666.2,665.26,0.30063433]
[1749507140169,1.09585313,666.2,665.26,0.30063433]
[1749507140570,1.60364955,666.2,665.26,0.30063433]
[1749507140868,1.09585313,666.19,665.26,0.30063433]
[1749507141071,1.60364955,666.19,665.26,0.30063433]
[1749507141271,1.54267039,666.19,665.26,0.30063433]
[1749507141572,1.54229267,666.27,665.26,0.30063433]
[1749507142375,1.54062424,666.27,665.26,0.30063433]
[1749507142571,1.03360749,666.27,665.26,0.30063433]
[1749507142771,1.09454515,666.26,665.26,0.30063433]
[1749507142974,1.12090194,666.21,665.26,0.30063433]
[1749507143577,1.09454515,666.2,665.26,0.30063433]
[1749507143771,1.12090194,666.21,665.26,0.30063433]
[1749507143772,1.09454515,666.19,665.26,0.30063433]
[1749507144072,2.63516435,666.2,665.26,0.30063433]
[1749507144271,2.1269583,666.19,665.26,0.30063433]
[1749507144475,2.63357826,666.18,665.26,0.30063433]
[1749507144772,1.09454515,666.17,665.26,0.30063433]
[1749507144971,2.12696206,666.24,665.26,0.30063433]
[1749507145271,1.09454515,666.23,665.26,0.30063433]
[1749507145472,1.09454515,666.22,665.26,0.30063433]
[1749507145673,1.09454515,666.21,665.26,0.30063433]
[1749507145877,1.09454515,666.23,665.26,0.30063433]
[1749507146177,1.09454515,666.22,665.26,0.30063433]
[1749507146372,1.09454515,666.21,665.26,0.30063433]
[1749507146577,3.75415821,666.25,665.26,0.30063433]
[1749507146773,2.12670715,666.24,665.26,0.30063433]
[1749507146975,1.09454515,666.23,665.26,0.30063433]
[1749507147174,1.09454515,666.22,665.26,0.30063433]
[1749507147377,1.09454515,666.21,665.26,0.30063433]
[1749507147578,1.09454515,666.2,665.26,0.30063433]
[1749507147778,1.60096915,666.22,665.26,0.30063433]
[1749507147975,1.09454515,666.21,665.26,0.30063433]
[1749507148179,1.09454515,666.2,665.26,0.30063433]
[1749507148380,1.09454515,666.19,665.26,0.30063433]
[1749507148576,1.09454515,666.18,665.26,0.30063433]
[1749507148781,1.09454515,666.17,665.26,0.30063433]
[1749507148979,2.63296474,666.18,665.26,0.30063433]
[1749507149280,2.63296474,666.17,665.26,0.30063433]
[1749507149476,2.63296474,666.16,665.26,0.30063433]
[1749507149681,2.12653877,666.15,665.26,0.30063433]
[1749507149981,2.12624228,666.14,665.26,0.30063433]
[1749507150176,2.12624228,666.13,665.26,0.30063433]
[1749507150477,2.12624228,666.12,665.26,0.30063433]
[1749507150678,2.12624228,666.11,665.26,0.30063433]
[1749507150882,2.12624228,666.1,665.26,0.30063433]
[1749507151178,2.12624228,666.09,665.26,0.30063433]
[1749507151377,2.1259248,666.08,665.26,0.30063433]
[1749507151678,1.09454515,666.07,665.26,0.30063433]
[1749507151882,2.63210083,666.25,665.26,0.30063433]
[1749507152077,2.12592544,666.24,665.26,0.30063433]
[1749507152380,2.63210228,666.23,665.26,0.30063433]
[1749507152578,2.63210228,666.22,665.26,0.30063433]
[1749507152777,2.12592533,666.21,665.26,0.30063433]
[1749507153077,2.63210167,666.2,665.26,0.30063433]
[1749507153282,1.09454515,666.19,665.26,0.30063433]
[1749507153579,1.09454515,666.18,665.26,0.30063433]
[1749507153879,1.09454515,666.17,665.26,0.30063433]
[1749507154178,1.09454515,666.16,665.26,0.30063433]
[1749507154484,1.09454515,666.15,665.26,0.30063433]
[1749507154684,1.09454515,666.14,665.26,0.30063433]
[1749507154877,1.09454515,666.13,665.26,0.30063433]
[1749507155079,1.09454515,666.12,665.26,0.30063433]
[1749507155278,1.09454515,666.11,665.26,0.30063433]
[1749507155479,2.12580671,666.17,665.26,0.30063433]
[1749507155683,2.63188554,666.16,665.26,0.30063433]
[1749507155882,2.63188554,666.15,665.26,0.30063433]
[1749507156079,2.63188554,666.14,665.26,0.30063433]
[1749507156284,2.12580671,666.13,665.26,0.30063433]
[1749507156481,2.63177349,666.12,665.26,0.30063433]
[1749507156685,2.12580671,666.11,665.26,0.30063433]
[1749507156886,2.12524732,666.1,665.26,0.30063433]
[1749507157182,2.12524723,666.09,665.26,0.30063433]
[1749507157387,2.12524723,666.08,665.26,0.30063433]
[1749507157682,2.12524723,666.07,665.26,0.30063433]
[1749507157982,2.12524723,666.06,665.26,0.30063433]
[1749507158282,2.12503836,666.05,665.26,0.30063433]
[1749507158487,2.12503834,666.04,665.26,0.30063433]
[1749507158686,1.09454515,666.03,665.26,0.30063433]
[1749507158882,1.12090194,666.14,665.26,0.30063433]
[1749507158883,1.60031195,666.13,665.26,0.30063433]
[1749507159187,1.09454515,666.12,665.26,0.30063433]
[1749507159382,1.09454515,666.11,665.26,0.30063433]
[1749507159681,1.09454515,666.1,665.26,0.30063433]
[1749507159883,1.09454515,666.11,665.26,0.30063433]
[1749507160083,1.09454515,666.1,665.26,0.30063433]
[1749507160387,2.63117285,666.13,665.26,0.30063433]
[1749507160582,1.60026549,666.12,665.26,0.30063433]
[1749507160788,1.09454515,666.11,665.26,0.30063433]
[1749507161484,2.63115937,666.11,665.26,0.30063433]
[1749507161787,1.03084343,666.1,665.26,0.30063433]
[1749507161986,2.12538858,666.1,665.26,0.30063433]
[1749507162283,2.12538872,666.09,665.26,0.30063433]
[1749507162587,2.12524744,666.08,665.26,0.30063433]
[1749507162788,2.12524743,666.07,665.26,0.30063433]
[1749507162988,2.12524743,666.06,665.26,0.30063433]
[1749507163185,1.12090194,666.13,665.26,0.30063433]
[1749507163186,1.09454515,666.05,665.26,0.30063433]
[1749507163387,2.12527786,666.12,665.26,0.30063433]
[1749507163584,1.09454515,666.11,665.26,0.30063433]
[1749507163781,1.09454515,666.1,665.26,0.30063433]
[1749507163985,1.60031399,666.1,665.26,0.30063433]
[1749507164187,2.62678556,666.11,665.26,0.30063433]
[1749507164487,1.59605284,666.1,665.26,0.30063433]
[1749507164685,2.62678559,666.13,665.26,0.30063433]
[1749507164885,1.59605284,666.12,665.26,0.30063433]
[1749507165086,1.09028397,666.11,665.26,0.30063433]
[1749507165284,1.09028397,666.1,665.26,0.30063433]
[1749507165584,1.09028397,666.09,665.26,0.30063433]
[1749507165786,2.62667977,666.1,665.26,0.30063433]
[1749507165983,2.12091088,666.09,665.26,0.30063433]
[1749507166186,2.12091088,666.08,665.26,0.30063433]
[1749507166386,2.12091088,666.07,665.26,0.30063433]
[1749507166589,2.12090859,666.06,665.26,0.30063433]
[1749507166790,1.09028397,666.05,665.26,0.30063433]
[1749507167089,2.12095121,666.1,665.26,0.30063433]
[1749507167288,2.12095121,666.09,665.26,0.30063433]
[1749507167485,2.12095121,666.08,665.26,0.30063433]
[1749507167686,2.12095121,666.07,665.26,0.30063433]
[1749507167988,1.09028397,666.06,665.26,0.30063433]
[1749507168185,1.03067252,666.06,665.26,0.30063433]
[1749507168587,1.03118105,666.09,665.26,0.30063433]
[1749507169090,1.03143325,666.09,665.26,0.30063433]
[1749507169285,2.12171722,666.1,665.26,0.30063433]
[1749507169488,1.03143325,666.1,665.26,0.30063433]
[1749507169691,1.399,666.11,665.26,0.30063433]
[1749507174395,3.51990651,666.11,665.26,0.30063433]
[1749507174591,1.08935096,666.1,665.26,0.30063433]
[1749507175093,1.399,666.11,665.26,0.30063433]
[1749507178801,3.52156751,666.11,665.26,0.30063433]
[1749507178999,1.08935096,666.1,665.26,0.30063433]
[1749507179199,2.12248486,666.1,665.26,0.30063433]
[1749507179399,2.12248522,666.09,665.26,0.30063433]
[1749507179598,2.12248522,666.08,665.26,0.30063433]
[1749507179801,2.12248522,666.07,665.26,0.30063433]
[1749507179999,1.08935096,666.06,665.26,0.30063433]
[1749507180302,2.12248522,666.1,665.26,0.30063433]
[1749507180502,1.693,666.05,665.26,0.30063433]
[1749507181803,2.78235096,666.05,665.26,0.30063433]
[1749507182100,1.08935096,666.04,665.26,0.30063433]
[1749507182601,1.693,666.05,665.26,0.30063433]
[1749507183803,2.78235096,666.05,665.26,0.30063433]
[1749507183998,1.08935096,666.04,665.26,0.30063433]
[1749507184400,1.693,666.05,665.26,0.30063433]
[1749507185805,3.81811291,666.05,665.26,0.30063433]
[1749507186002,1.59738092,666.04,665.26,0.30063433]
[1749507186305,2.12512378,666.04,665.26,0.30063433]
[1749507186506,0.50803232,666.03,665.26,0.30063433]
[1749507186706,2.63315611,666.04,665.26,0.30063433]
[1749507186906,0.50803232,666.03,665.26,0.30063433]
[1749507187106,2.63315618,666.04,665.26,0.30063433]
[1749507187401,0.50803235,666.03,665.26,0.30063433]
[1749507187606,1.59738331,666.03,665.26,0.30063433]
[1749507187903,1.08935096,666.04,665.26,0.30063433]
[1749507188308,1.08935096,666.03,665.26,0.30063433]
[1749507188507,1.08935096,666.02,665.26,0.30063433]
[1749507188705,1.59739901,666.03,665.26,0.30063433]
[1749507189008,1.08935096,666.02,665.26,0.30063433]
[1749507189408,1.08935096,666.01,665.26,0.30063433]
[1749507189604,1.08935096,666.0,665.26,0.30063433]
[1749507189809,1.08935096,666.02,665.26,0.30063433]
[1749507190010,1.08935096,666.01,665.26,0.30063433]
[1749507190310,1.08935096,666.0,665.26,0.30063433]
[1749507190508,1.08935096,665.99,665.26,0.30063433]
[1749507190811,1.693,666.05,665.26,0.30063433]
[1749507202720,1.42,666.04,665.26,0.30063433]
[1749507235848,1.693,666.05,665.26,0.30063433]
[1749507238649,0.30006151,666.53,665.26,0.30063433]
[1749507240848,1.186,666.52,665.26,0.30063433]
[1749507241051,1.48606601,666.52,665.26,0.30063433]
[1749507246357,1.115,666.51,665.26,0.30063433]
[1749507247554,0.30007501,666.5,665.26,0.30063433]
[1749507264577,1.568,666.49,665.26,0.30063433]
[1749507267779,0.26131521,666.28,665.26,0.30063433]
[1749507272579,1.568,666.49,665.26,0.30063433]
[1749507272879,0.2612799,666.46,665.26,0.30063433]
[1749507285087,1.568,666.49,665.26,0.30063433]
[1749507299498,1.195,666.48,665.26,0.30063433]
[1749507302201,1.195,666.48,665.33,0.26123577]
[1749507302401,1.195,666.48,665.35,0.30059367]
[1749507316609,1.255,666.47,665.35,0.30059367]
[1749507353045,1.255,666.46,665.35,0.30059367]
[1749507374866,0.95,666.45,665.35,0.30059367]
[1749507401097,0.754,666.44,665.35,0.30059367]
[1749507426307,0.754,666.44,665.44,0.26112991]
[1749507426510,0.754,666.44,665.46,0.30054398]
[1749507428811,0.824,666.43,665.46,0.30054398]
[1749507454029,0.903,666.42,665.46,0.30054398]
[1749507471952,1.018,666.41,665.46,0.30054398]
[1749507488972,0.958,666.4,665.46,0.30054398]
[1749507503278,0.808,666.39,665.46,0.30054398]
[1749507533414,0.958,666.4,665.46,0.30054398]
[1749507537014,0.901,666.39,665.46,0.30054398]
[1749507539412,0.901,666.39,665.54,0.2610261]
[1749507539916,0.901,666.39,665.56,0.30049882]
[1749507549019,0.674,666.38,665.56,0.30049882]
[1749507582442,0.821,666.37,665.56,0.30049882]
[1749507585746,0.821,666.37,665.54,0.2610261]
[1749507602062,0.821,666.37,467.15,0.0214064]
[1749507602366,0.821,666.37,665.62,0.26088717]
[1749507602661,0.821,666.37,467.15,0.0214064]
[1749507603966,0.821,666.37,651.28,0.26087152]
[1749507609670,0.634,666.36,651.28,0.26087152]
[1749507611167,0.634,666.36,652.03,0.30673435]
[1749507624772,0.26244047,667.56,652.03,0.30673435]
[1749507624976,0.655,666.35,652.03,0.30673435]
[1749507627673,0.771,666.34,652.03,0.30673435]
[1749507641787,0.655,666.35,652.03,0.30673435]
[1749507644290,0.59,666.34,652.03,0.30673435]
[1749507652692,0.785,666.33,652.03,0.30673435]
[1749507669708,0.64,666.32,652.03,0.30673435]
[1749507685429,0.731,666.31,652.03,0.30673435]
[1749507710744,0.386,666.3,652.03,0.30673435]
[1749507716947,0.595,666.29,652.03,0.30673435]
[1749507727866,0.386,666.3,652.03,0.30673435]
[1749507731468,0.533,666.29,652.03,0.30673435]
[1749507754087,0.327,666.28,652.03,0.30673435]
[1749507759089,0.499,666.27,652.03,0.30673435]
[1749507795621,0.305,666.26,652.03,0.30673435]
[1749507804224,0.305,666.26,653.0,0.26247115]
[1749507804429,0.305,666.26,653.66,0.30596946]
[1749507815734,0.499,666.27,653.66,0.30596946]
[1749507817033,0.26244047,667.56,653.66,0.30596946]
[1749507819835,0.427,667.55,653.66,0.30596946]
[1749507820037,0.861,667.55,653.66,0.30596946]
[1749507834952,0.427,667.55,653.66,0.30596946]
[1749507836252,0.26217158,667.42,653.66,0.30596946]
[1749507838854,0.473,667.41,653.66,0.30596946]
[1749507842156,0.381,667.4,653.66,0.30596946]
[1749507867982,0.3,667.39,653.66,0.30596946]
[1749507887794,0.338,667.38,653.66,0.30596946]
[1749507928834,0.26209161,667.76,653.66,0.30596946]
[1749507929635,0.359,667.75,653.66,0.30596946]
[1749507931336,0.382,667.74,653.66,0.30596946]
[1749507961952,0.278,667.73,653.66,0.30596946]
[1749507973962,0.36,667.72,653.66,0.30596946]
[1749507996180,0.366,667.71,653.66,0.30596946]
[1749508004492,0.366,667.71,654.66,0.26210839]
[1749508004688,0.366,667.71,655.31,0.30519906]
[1749508012788,0.255,667.7,655.31,0.30519906]
[1749508041611,0.28,667.69,655.31,0.30519906]
[1749508066623,0.26209161,667.76,655.31,0.30519906]
[1749508067227,0.303,667.75,655.31,0.30519906]
[1749508070528,0.368,667.74,655.31,0.30519906]
[1749508085643,0.303,667.75,655.31,0.30519906]
[1749508089645,0.278,667.74,655.31,0.30519906]
[1749508099653,0.311,667.73,655.31,0.30519906]
[1749508133679,0.278,667.74,655.31,0.30519906]
[1749508136677,0.257,667.73,655.31,0.30519906]
[1749508143585,0.225,667.72,655.31,0.30519906]
[1749508162602,0.257,667.73,655.31,0.30519906]
[1749508166606,0.295,667.72,655.31,0.30519906]
[1749508191117,0.292,667.71,655.31,0.30519906]
[1749508204827,0.292,667.71,656.15,0.26190915]
[1749508205127,0.292,667.71,656.72,0.30454379]
[1749508226437,0.299,667.7,656.72,0.30454379]
[1749508252658,0.223,667.69,656.72,0.30454379]
[1749508287383,0.34,667.68,656.72,0.30454379]
[1749508296785,0.296,667.67,656.72,0.30454379]
[1749508304586,0.291,667.66,656.72,0.30454379]
[1749508336517,0.275,667.65,656.72,0.30454379]
[1749508337014,0.275,667.65,666.79,3.70253857]
[1749508337318,0.275,667.65,666.8,0.29994001]
[1749508339719,0.275,667.65,666.8,4.00247858]
[1749508340217,0.275,667.65,666.82,3.70253857]
[1749508340419,0.275,667.65,666.83,0.29992651]
[1749508340718,0.275,667.65,666.85,3.70253857]
[1749508341119,0.275,667.65,666.86,3.70253857]
[1749508341618,0.275,667.65,666.87,3.70253857]
[1749508342114,0.275,667.65,666.86,3.70253857]
[1749508342919,0.275,667.65,666.87,3.70253857]
[1749508343717,0.275,667.65,666.83,0.29992651]
[1749508343718,0.275,667.65,666.98,3.70253857]
[1749508344222,0.275,667.65,667.04,3.70253857]
[1749508344917,0.275,667.65,666.83,0.29992651]
[1749508368631,0.405,667.64,666.83,0.29992651]
[1749508372433,0.282,667.63,666.83,0.29992651]
[1749508402871,0.302,667.62,666.83,0.29992651]
[1749508439797,1.08119476,667.88,666.83,0.29992651]
[1749508439997,1.08119476,667.87,666.83,0.29992651]
[1749508440192,1.08119476,667.86,666.83,0.29992651]
[1749508440397,1.08119476,667.85,666.83,0.29992651]
[1749508440694,1.0668074,667.84,666.83,0.29992651]
[1749508440897,0.26073373,667.92,666.83,0.29992651]
[1749508440898,1.0668074,667.83,666.83,0.29992651]
[1749508441098,1.0668074,667.91,666.83,0.29992651]
[1749508441299,1.0668074,667.9,666.83,0.29992651]
[1749508441501,1.0668074,667.89,666.83,0.29992651]
[1749508441697,1.0668074,667.88,666.83,0.29992651]
[1749508441899,1.0668074,667.87,666.83,0.29992651]
[1749508442099,0.26073373,667.92,666.83,0.29992651]
[1749508442100,1.0668074,667.86,666.83,0.29992651]
[1749508442295,1.0668074,667.85,666.83,0.29992651]
[1749508442502,1.0668074,667.91,666.83,0.29992651]
[1749508442698,1.0668074,667.9,666.83,0.29992651]
[1749508442898,1.0668074,667.89,666.83,0.29992651]
[1749508443099,1.0668074,667.88,666.83,0.29992651]
[1749508443298,1.0668074,667.87,666.83,0.29992651]
[1749508443498,1.0668074,667.86,666.83,0.29992651]
[1749508443704,1.0668074,667.85,666.83,0.29992651]
[1749508444001,1.0668074,667.91,666.83,0.29992651]
[1749508444201,1.0668074,667.9,666.83,0.29992651]
[1749508444397,1.0668074,667.89,666.83,0.29992651]
[1749508444597,1.06647417,667.88,666.83,0.29992651]
[1749508444800,1.06647417,667.87,666.83,0.29992651]